{"text_format":"1","workbook":"xlsx","n_sheets":10,"sheets":["Guida","Esempio_1","Esempio_2","Esempio_3","Progettazioni","Prestazioni","Parametri","CALCOLO CS","Elenchi","SA"],"not_rendered":{"charts":0,"images":2,"macros":1,"external_links":1,"defined_names":18,"comments":4,"pivot_tables":0},"unopened":[],"bounds":{"document_bytes":16777216,"sheet_cells":100000,"rows_first":2000,"rows_last":500,"rows_between":2000,"halvings":0,"cell_chars":16384,"cell_head_chars":4096},"cells_cut":0,"cells_raw":0,"read":"whole","date_system":"1900"}

{"sheet":"Guida","index":0,"n_rows":43,"n_cols":2,"rows_kept":43,"cut":false,"hidden":false,"merged":[[0,0,0,1],[1,0,1,1],[21,0,21,1],[6,0,6,1],[3,0,3,1],[4,0,4,1],[5,0,5,1],[16,0,16,1],[17,0,17,1],[18,0,18,1],[20,0,20,1],[19,0,19,1],[23,0,23,1],[24,0,24,1],[25,0,25,1],[26,0,26,1],[27,0,27,1],[29,0,29,1],[30,0,30,1],[41,0,41,1],[28,0,28,1],[31,0,31,1],[33,0,33,1],[32,0,32,1],[42,0,42,1],[39,0,39,1],[40,0,40,1],[34,0,34,1],[35,0,35,1],[38,0,38,1],[37,0,37,1]]}
["PSR CAMPANIA 2014-2020 - Tipologia di Intervento 4.1.1 - azione A e azione B"]
["Spese generali - definizioni e procedura di inserimento dati"]
[]
["Metodo di calcolo del Costo Semplificato delle Spese di Progettazione (compenso del professionista)"]
[]
[]
["Definizioni"]
["Spese di Progettazione","Le spese di progettazione, che rappresentano il compenso del progettista o dei progettisti coinvolti nella presentazione delle domande di sostegno e nell'elaborazione degli elaborati necessari alla realizzazione dell'investimento (spese per agronomi, ingegneri, architetti, periti, ecc.), rappresentano una voce non secondaria delle spese ammesse a beneficiare del contributo delle sottomisure 4.1 –  sostegno a investimenti nelle aziende agricole.  La presente metodologia non intende quantificare il compenso effettivo del progettista, che è lasciato alla libera contrattazione tra le parti nel rispetto della normativa vigente. Essa è infatti finalizzata all’individuazione della spesa ammissibile, ovvero del valore “standard” delle spese di progettazione che l’Autorità pubblica è disposta a finanziare con i fondi dello sviluppo rurale. La presente metodologia di calcolo considera le \"Spese di Progettazione\" in funzione della tipologia di investimento o di opera (oggetto della progettazione) ed in funzione del numero e della tipologia di prestazioni operate dal consulente all'interno di ciascuna progettazione."]
["Categorie","Gli investimenti possono rientrare in una delle seguenti categorie: Edilizia, Impianti, Ruralità. La classificazione degli investimenti in queste categorie, così come i parametri di complessità delle opere, le prestazioni e i valori stessi delle prestazioni sono stati mutuati dal DM 17/06/2016."]
["Edilizia 1","Investimenti per la realizzazione ex novo di edifici e/o strutture di tipo complesso destinati alla produzione, trasformazione, commercializzazione e/o sviluppo di prodotti agricoli, comprensiva di impianti civili di servizio agli edifici (p.e. impianto elettrico, impianto riscaldamento/raffrescamento, impianto idrico, ecc.). Rientrano in questa tipologia di investimento gli edifici destinati ad ospitare stalle, cantine, frantoi, ecc."]
["Edilizia 2","Interventi di ristrutturazione e/o manutenzione straordinaria di edifici e/o strutture edili preesistenti, comprendenti ad esempio il rifacimento/messa a norma degli impianti a servizio dell’edificio, il restauro/ammodernamento delle opere murarie, ecc."]
["Edilizia 3","Investimenti per la realizzazione ex novo di edifici e/o strutture di tipo semplice, come ad esempio capannoni per il ricovero degli attrezzi, trincee, vasche, etc. "]
["Miglioramenti fondiari","Investimenti di miglioramento del capitale fondiario aziendale, come ad esempio realizzazione di impianti arborei, reti irrigue aziendali, miglioramento di impianti arborei esistenti, sistemazioni dei terreni agricoli, recinzioni, serre, strutture fisse di sostegno per reti antigrandine, antinsetto, ombreggiamento, attrezzature e componenti a utilità pluriennale, ecc. "]
["Impianti","Impianti per la lavorazione, la trasformazione, la commercializzazione e/o lo sviluppo di prodotti agricoli. Ci si riferisce, in questo caso, a interventi di acquisto e posa in opera di macchinari fissi (p.e. impianti oleari e/o enologici, comprensivi di cisterne e contenitori per la conservazione, impianti di mungitura, linee di lavorazione degli ortaggi, ecc.). Ad essi sono stati assimilati anche gli impianti per la produzione di energia rinnovabile, che nel caso degli interventi finanziati dalla misura 4.1 sono rappresentati da unità di dimensione piccola o media, e comunque destinati prevalentemente all’autoconsumo (p.e. microeolico, impianti fotovoltaici aziendali, ecc.). "]
["Macchine e attrezzature","Acquisizione di macchine semoventi, (trattori, mietitrebbie, ecc.), attrezzature per la lavorazione dei terreni, per la concimazione, i trattamenti, la raccolta, ecc."]
[]
["Procedura per calcolare correttamente le spese di progettazione (compenso del professionista)"]
["1) definire con estrema precisione ed esattezza gli ambiti (progettazioni) in cui ricadono le opere che si intendono realizzare. Un investimento può infatti prevedere più opere/acquisizioni che possono ricadere in una o più delle progettazioni individuate da questa metodologia. Solo la corretta attribuzione di ciascuna opera/acquisizione dell’investimento alla rispettiva tipologia di progettazione consentirà la giusta applicazione dei parametri G e Q e la stima del compenso finale;"]
["2) nel foglio \"Progettazioni\", attribuire, con la stessa estrema precisione, il valore di realizzazione delle singole progettazioni individuate al punto precedente nelle celle verdi (G4:G9). Il valore preciso di ogni singola progettazione risulta infatti fondamentale per la corretta valorizzazione del compenso finale in quanto su tali valori sarà applicato il tasso forfettario individuato dalla metodologia;"]
["3) nel foglio \"Prestazioni\" individuare e selezionare, in base alle caratteristiche dell’investimento, alla localizzazione e alla pertinente normativa, le prestazioni che è necessario eseguire, tra quelle indicate come “potenzialmente presenti” (celletta verde con quadratino bianco ¨). Non è ovviamente necessario effettuare alcuna scelta per le prestazioni classificate come “mai presenti” (n) o come “sempre presenti” (þ) (vedi par. 2.2 della Metodologia);"]
["4) nel foglio \"CALCOLO CS\", il sistema, una volta individuato, per ciascuna tipologia di progettazione, il valore CP secondo il procedimento indicato nei punti precedenti, sommerà i diversi importi e procederà all’applicazione delle maggiorazioni previste per le spese e oneri accessori (vedi par. 2.3 della Metodologia) e per le spese procedurali e amministrative (pari a 1.188 euro - vedi par. 2.4 della Metodologia);"]
["5) Il valore del Costo Semplificato CS per il compenso del professionista (CP) apparirà in fondo al foglio \"CALCOLO CS\" nella cella azzurra in G77."]
[]
["Regione Campania - Assessorato  Agricoltura - Verifica della spesa massima ammissibile per la voce \"Spese generali\" "]
["Le spese di progettazione sono una parte delle Spese Generali, che sono soggette ai limiti massimi previsti dalle disposizioni generali (D. G.):"]
["per costruzione, acquisizione o miglioramento di beni immobili, di cui all’art. 45, par. 2, punto a) del Reg. (UE) n. 1305/2013:\n           -  un massimo del 10% per un importo fino a 500.000,00 euro;\n           -  un massimo del 5% sulla parte eccedente i 500.000,00 euro e fino ad 1.000.000,00;\n           -  un massimo del 2,5% sulla parte eccedente 1.000.000,00 euro;"]
["per acquisto di nuovi macchinari e attrezzature, di cui all’art. 45, par. 2, punto b) del Reg. (UE) n. 1305/2013, invece, le spese generali sono riconosciute fino ad un massimo del 5%."]
["Nel foglio di CALCOLO CS"]
["la colonna F riporta il calcolo del costo semplificato P delle spese di progettazione, secondo la metodologia ISMEA"]
["la colonna G riporta il calcolo del costo semplificato P nel rispetto dei limiti previsti dalle Disposizioni Generali (D.G.)"]
["dal rigo 86 al rigo 92  è possibile inserire spese generali diverse da quelle di progettazione (da rendicontare a saldo)"]
["il rigo 95 riporta il calcolo del TOTALE SPESE GENERALI AMMISSIBILI A CONTRIBUTO"]
["Metodologia di calcolo delle spese generali ammissibili a contributo:"]
["le categorie di progettazione 1-2-4-5 ricadono nell'ambito del massimale previsto per costruzione, acquisizione o miglioramento di beni immobili, di cui all’art. 45, par. 2, punto a) del Reg. (UE) n. 1305/2013;"]
["le categorie di progettazione 3-6 ricadono nell'ambito del massimale previsto per acquisto di nuovi macchinari e attrezzature, di cui all’art. 45, par. 2, punto b) del Reg. (UE) n. 1305/2013;"]
["la somma dei costi di progettazione e delle altre spese generali non può, in ogni caso, superare i limiti previsti dalle disposizioni generali;"]
["se le spese generali esposte superano tali limiti, l'algoritmo riduce proporzionalmente le singole voci di costo."]
["Esempio n. 1 - spese esposte nei limiti previsti dalle disposizioni generali"]
["La somma dei costi semplicati per la progettazione e per le altre spese generali rientra nel massimale previsto dalle disposizioni generali (rigo 95+rigo 96), per cui tutta la spesa esposta (rigo 81+rigo 93) è ammissibile a contributo (rigo 95)."]
["Esempio n. 2 - spese esposte superiori ai limiti previsti dalle disposizioni generali"]
["La somma dei costi semplicati per la progettazione e per le altre spese generali non rientra nel massimale previsto dalle disposizioni generali (rigo 95+rigo 96), per cui tutte le singole voci di costo   vengono ridotte proporzionalmente (rigo 14, rigo 26, rigo 38, rigo 80, rigo 93)."]
["Esempio n. 3 - costo semplificato per le progettazioni di cui all'art. 45, par. 2 punto a) superiore al limite previsti dalle disposizioni generali"]
["La somma dei costi semplicati per le progettazioni di categoria 1 e 2 non rientra nel massimale previsto dalle disposizioni generali (rigo 95), per cui la spesa calcolata per P1 (colonna F - rigo 14)  e P2 (colonna F - rigo 26) viene ridotta proporzionalmente (colonna G - rigo 14 e rigo 26)."]

{"sheet":"Esempio_1","index":1,"n_rows":96,"n_cols":12,"rows_kept":96,"cut":false,"hidden":false,"merged":[[7,1,9,1],[7,2,9,2],[7,3,9,3],[7,6,12,6],[0,0,0,6],[1,1,1,6],[3,0,3,6],[4,1,4,6],[5,2,5,5],[16,1,16,6],[17,2,17,6],[19,1,21,1],[19,2,21,2],[19,3,21,3],[19,6,24,6],[28,1,28,6],[29,2,29,6],[31,1,33,1],[31,2,33,2],[31,3,33,3],[31,6,36,6],[40,1,40,6],[41,2,41,6],[43,1,45,1],[43,2,45,2],[43,3,45,3],[43,6,48,6],[52,1,52,6],[53,2,53,6],[55,1,57,1],[55,2,57,2],[55,3,57,3],[55,6,60,6],[84,0,84,4],[64,1,64,6],[65,2,65,6],[67,1,69,1],[67,2,69,2],[67,3,69,3],[67,6,72,6],[76,0,77,6],[79,0,79,4],[80,0,80,4],[81,0,81,4],[83,0,83,6],[85,0,85,4],[85,6,91,6],[86,0,86,4],[87,0,87,4],[88,0,88,4],[89,0,89,4],[90,0,90,4],[91,0,91,4],[94,9,95,9],[92,0,92,4],[93,0,93,1],[94,2,95,5],[94,6,95,6],[94,7,95,7],[94,8,95,8]]}
["CALCOLO SPESE GENERALI (spese di progettazione e altre spese generali)"]
["RICHIEDENTE"]
[]
["SPESE DI PROGETTAZIONE - COSTI SEMPLIFICATI",null,null,null,null,null,null,"importo max richiedibile","importo max delle spese generali"]
["Progettazione 1"," Edifici rurali di tipo complesso"]
["Vp1",500000]
[null,"Relazione geologica","Studio Impatto Ambientale (VIA)","Piano di monitoraggio ambientale (VIA)","Altre prestazioni","costo semplificato P1","costo semplificato P1 nel rispetto dei limiti previsti dalle D.G.","Totale spesa progettazioni P1-P2-P4-P5 (PT)",1000000]
["P",null,null,null,6.9810717055349719E-2,null,null,null,50000,0.1,0,500000]
["Q",null,null,null,1.27,null,null,null,25000,0.05,500000,1000000]
["G",null,null,null,0.95,null,null,null,0,2.5000000000000001E-2,1000000]
["CP",1376.1437599535811,0,0,42113.315063639711,43489.45882359329,null,"totale spese generali (SP) 10%",75000]
[null,null,null,null,null,null,null,"totale CS (CST)",70293.464708542175]
["spese accessorie: 9,75%",4240.2222353003463,9.7500000000000003E-2,null,null,null,null,null,null,"P/PT","SP/CST","riduzione"]
["TOTALE P1",null,null,null,null,47729.681058893635,47729.680999999997,47729.680999999997,0,0.5,0,0]
["incidenza parziale",9.5459362117787272E-2]
[]
["Progettazione 2"," Manutenzione straordinaria"]
["Vp2",500000]
[null,"Relazione geologica","Studio Impatto Ambientale (VIA)","Piano di monitoraggio ambientale (VIA)","Altre prestazioni","costo semplificato P2","costo semplificato P2 nel rispetto dei limiti previsti dalle D.G."]
["P",null,null,null,6.9810717055349719E-2]
["Q",null,null,null,0.62000000000000011]
["G",null,null,null,0.95]
["CP",0,0,0,20559.256172800495,20559.256172800495]
[]
["spese accessorie: 9,75%",2004.5274768480483,9.7500000000000003E-2]
["TOTALE P2",null,null,null,null,22563.783649648543,22563.784,22563.784,0,0.5]
["incidenza parziale",4.5127567299297087E-2]
[]
["Progettazione 3"," Impianti tecnologici"]
["Vp3",500000]
[null,"Relazione geologica","Studio Impatto Ambientale (VIA)","Piano di monitoraggio ambientale (VIA)","Altre prestazioni","costo semplificato P3","costo semplificato P3 nel rispetto dei limiti previsti dalle D.G."]
["P",null,null,null,8.253055608807533E-2]
["Q",null,null,null,0.67500000000000004]
["G",null,null,null,0.7]
["CP",0,0,0,19497.843875807797,19497.843875807797]
[]
["spese accessorie: 9,75%",1901.0397778912602,9.7500000000000003E-2]
["TOTALE P3",null,null,null,null,21398.883653699057,21398.883999999998,21398.883999999998,25000,0.05]
["incidenza parziale",4.2797767307398114E-2]
[]
["Progettazione 4"," Edifici rurali di tipo semplice"]
["Vp4",0]
[null,"Relazione geologica","Studio Impatto Ambientale (VIA)","Piano di monitoraggio ambientale (VIA)","Altre prestazioni","costo semplificato P4","costo semplificato P4 nel rispetto dei limiti previsti dalle D.G."]
["P",null,null,null,6.9810717055349719E-2]
["Q",null,null,null,0.64000000000000012]
["G",null,null,null,0.65]
["CP",0,0,0,0,0]
[]
["spese accessorie: 10,00%",0,0.1]
["TOTALE P4",null,null,null,null,0,0,0,0,false]
["incidenza parziale",0]
[]
["Progettazione 5"," Miglioramenti fondiari"]
["Vp5",0]
[null,"Relazione geologica","Studio Impatto Ambientale (VIA)","Piano di monitoraggio ambientale (VIA)","Altre prestazioni","costo semplificato P5","costo semplificato P5 nel rispetto dei limiti previsti dalle D.G."]
["P",null,null,null,8.253055608807533E-2]
["Q",null,null,null,0.30499999999999999]
["G",null,null,null,0.65]
["CP",0,0,0,0,0]
[]
["spese accessorie: 10,00%",0,0.1]
["TOTALE P5",null,null,null,null,0,0,0,0,false]
["incidenza parziale",0]
[]
["Progettazione 6"," Macchine, attrezzature e beni immateriali"]
["Vp6",500000]
[null,"Relazione geologica","Studio Impatto Ambientale (VIA)","Piano di monitoraggio ambientale (VIA)","Altre prestazioni","costo semplificato P6","costo semplificato P6 nel rispetto dei limiti previsti dalle D.G."]
["P",null,null,null,8.253055608807533E-2]
["Q",null,null,null,4.4999999999999998E-2]
["G",null,null,null,0.65]
["CP","/","/","/",1207.0093827881019,1207.0093827881019]
[]
["spese accessorie: 9,75%",117.68341482183995,9.7500000000000003E-2]
["TOTALE P6",null,null,null,null,1324.6927976099419,1324.693,1324.693,25000,0.05]
["incidenza parziale",2.6493855952198836E-3]
[]
["TOTALE SPESE DI PROGETTAZIONE",null,null,null,null,null,null,"totale spese 10% max",75000]
[null,null,null,null,null,null,null,"totale spese 5% max",50000]
[null,null,null,null,null,"costo semplificato ","costo semplificato nel rispetto dei limiti previsti dalle D.G."]
["Costi procedurali e amministrativi",null,null,null,null,1188,1188,1188]
["CP totale",null,null,null,null,94205.041159851171,94205.041999999987,94205.041999999987,8.4014881576877087E-4]
["inc. tot.",null,null,null,null,4.7102520579925589E-2,4.7102520999999994E-2]
[]
["ALTRE SPESE GENERALI (da rendicontare a saldo)"]
[null,null,null,null,null,"costo effettivo","costo max ammissibile"]
["SPESE PER AZIONI INFORMATIVE E PUBBLICITARIE",null,null,null,null,1000]
["SPESE PER GARANZIE FIDEIUSSORIE",null,null,null,null,4000]
[]
[]
[]
[]
[]
["TOTALE",null,null,null,null,5000,5000,5000,125000]
["SPESE GENERALI calcolate con i parametri delle \nDisposizioni Generali (D.G.)"]
["GRUPPO 1 (max. 10%)",75000,"TOTALE SPESE GENERALI AMMISSIBILI A CONTRIBUTO",null,null,null,99205.041999999987,99205.041999999987,0,0]
["GRUPPO 2 (max. 5%)",50000]

{"sheet":"Esempio_2","index":2,"n_rows":96,"n_cols":12,"rows_kept":96,"cut":false,"hidden":false,"merged":[[7,1,9,1],[7,2,9,2],[7,3,9,3],[7,6,12,6],[0,0,0,6],[1,1,1,6],[3,0,3,6],[4,1,4,6],[5,2,5,5],[16,1,16,6],[17,2,17,6],[19,1,21,1],[19,2,21,2],[19,3,21,3],[19,6,24,6],[28,1,28,6],[29,2,29,6],[31,1,33,1],[31,2,33,2],[31,3,33,3],[31,6,36,6],[40,1,40,6],[41,2,41,6],[43,1,45,1],[43,2,45,2],[43,3,45,3],[43,6,48,6],[52,1,52,6],[53,2,53,6],[55,1,57,1],[55,2,57,2],[55,3,57,3],[55,6,60,6],[84,0,84,4],[64,1,64,6],[65,2,65,6],[67,1,69,1],[67,2,69,2],[67,3,69,3],[67,6,72,6],[76,0,77,6],[79,0,79,4],[80,0,80,4],[81,0,81,4],[83,0,83,6],[85,0,85,4],[85,6,91,6],[86,0,86,4],[87,0,87,4],[88,0,88,4],[89,0,89,4],[90,0,90,4],[91,0,91,4],[94,9,95,9],[92,0,92,4],[93,0,93,1],[94,2,95,5],[94,6,95,6],[94,7,95,7],[94,8,95,8]]}
["CALCOLO SPESE GENERALI (spese di progettazione e altre spese generali)"]
["RICHIEDENTE"]
[]
["SPESE DI PROGETTAZIONE - COSTI SEMPLIFICATI",null,null,null,null,null,null,"importo max richiedibile","importo max delle spese generali"]
["Progettazione 1"," Edifici rurali di tipo complesso"]
["Vp1",500000]
[null,"Relazione geologica","Studio Impatto Ambientale (VIA)","Piano di monitoraggio ambientale (VIA)","Altre prestazioni","costo semplificato P1","costo semplificato P1 nel rispetto dei limiti previsti dalle D.G.","Totale spesa progettazioni P1-P2-P4-P5 (PT)",1000000]
["P",null,null,null,6.9810717055349719E-2,null,null,null,50000,0.1,0,500000]
["Q",null,null,null,1.27,null,null,null,25000,0.05,500000,1000000]
["G",null,null,null,0.95,null,null,null,0,2.5000000000000001E-2,1000000]
["CP",1376.1437599535811,0,0,42113.315063639711,43489.45882359329,null,"totale spese generali (SP) 10%",75000]
[null,null,null,null,null,null,null,"totale CS (CST)",70293.464708542175]
["spese accessorie: 9,75%",4240.2222353003463,9.7500000000000003E-2,null,null,null,null,null,null,"P/PT","SP/CST","riduzione"]
["TOTALE P1",null,null,null,null,47729.681058893635,42283.428,47729.680999999997,0,0.5,0,0]
["incidenza parziale",9.5459362117787272E-2]
[]
["Progettazione 2"," Manutenzione straordinaria"]
["Vp2",500000]
[null,"Relazione geologica","Studio Impatto Ambientale (VIA)","Piano di monitoraggio ambientale (VIA)","Altre prestazioni","costo semplificato P2","costo semplificato P2 nel rispetto dei limiti previsti dalle D.G."]
["P",null,null,null,6.9810717055349719E-2]
["Q",null,null,null,0.62000000000000011]
["G",null,null,null,0.95]
["CP",0,0,0,20559.256172800495,20559.256172800495]
[]
["spese accessorie: 9,75%",2004.5274768480483,9.7500000000000003E-2]
["TOTALE P2",null,null,null,null,22563.783649648543,19989.116000000002,22563.784,0,0.5]
["incidenza parziale",4.5127567299297087E-2]
[]
["Progettazione 3"," Impianti tecnologici"]
["Vp3",500000]
[null,"Relazione geologica","Studio Impatto Ambientale (VIA)","Piano di monitoraggio ambientale (VIA)","Altre prestazioni","costo semplificato P3","costo semplificato P3 nel rispetto dei limiti previsti dalle D.G."]
["P",null,null,null,8.253055608807533E-2]
["Q",null,null,null,0.67500000000000004]
["G",null,null,null,0.7]
["CP",0,0,0,19497.843875807797,19497.843875807797]
[]
["spese accessorie: 9,75%",1901.0397778912602,9.7500000000000003E-2]
["TOTALE P3",null,null,null,null,21398.883653699057,18957.137999999999,21398.883999999998,25000,0.05]
["incidenza parziale",4.2797767307398114E-2]
[]
["Progettazione 4"," Edifici rurali di tipo semplice"]
["Vp4",0]
[null,"Relazione geologica","Studio Impatto Ambientale (VIA)","Piano di monitoraggio ambientale (VIA)","Altre prestazioni","costo semplificato P4","costo semplificato P4 nel rispetto dei limiti previsti dalle D.G."]
["P",null,null,null,6.9810717055349719E-2]
["Q",null,null,null,0.64000000000000012]
["G",null,null,null,0.65]
["CP",0,0,0,0,0]
[]
["spese accessorie: 10,00%",0,0.1]
["TOTALE P4",null,null,null,null,0,0,0,0,false]
["incidenza parziale",0]
[]
["Progettazione 5"," Miglioramenti fondiari"]
["Vp5",0]
[null,"Relazione geologica","Studio Impatto Ambientale (VIA)","Piano di monitoraggio ambientale (VIA)","Altre prestazioni","costo semplificato P5","costo semplificato P5 nel rispetto dei limiti previsti dalle D.G."]
["P",null,null,null,0]
["Q",null,null,null,0.30499999999999999]
["G",null,null,null,0.65]
["CP",0,0,0,0,0]
[]
["spese accessorie: 10,00%",0,0.1]
["TOTALE P5",null,null,null,null,0,0,0,0,false]
["incidenza parziale",0]
[]
["Progettazione 6"," Macchine, attrezzature e beni immateriali"]
["Vp6",0]
[null,"Relazione geologica","Studio Impatto Ambientale (VIA)","Piano di monitoraggio ambientale (VIA)","Altre prestazioni","costo semplificato P6","costo semplificato P6 nel rispetto dei limiti previsti dalle D.G."]
["P",null,null,null,0]
["Q",null,null,null,4.4999999999999998E-2]
["G",null,null,null,0.65]
["CP","/","/","/",0,0]
[]
["spese accessorie: 10,00%",0,0.1]
["TOTALE P6",null,null,null,null,0,0,0,0,0.05]
["incidenza parziale",0]
[]
["TOTALE SPESE DI PROGETTAZIONE",null,null,null,null,null,null,"totale spese 10% max",75000]
[null,null,null,null,null,null,null,"totale spese 5% max",25000]
[null,null,null,null,null,"costo semplificato ","costo semplificato nel rispetto dei limiti previsti dalle D.G."]
["Costi procedurali e amministrativi",null,null,null,null,1188,1052.442,1188]
["CP totale",null,null,null,null,92880.348362241231,82282.123999999996,92880.348999999987,-10598.224362241235]
["inc. tot.",null,null,null,null,6.1920232241494157E-2,5.4854749333333327E-2]
[]
["ALTRE SPESE GENERALI (da rendicontare a saldo)"]
[null,null,null,null,null,"costo effettivo","costo max ammissibile"]
["SPESE PER AZIONI INFORMATIVE E PUBBLICITARIE",null,null,null,null,1000]
["SPESE PER GARANZIE FIDEIUSSORIE",null,null,null,null,4000]
["PARCELLE PER CONSULENZE LEGALI",null,null,null,null,15000]
[]
[]
[]
[]
["TOTALE",null,null,null,null,20000,17717.88,20000,100000]
["SPESE GENERALI calcolate con i parametri delle \nDisposizioni Generali (D.G.)"]
["GRUPPO 1 (max. 10%)",75000,"TOTALE SPESE GENERALI AMMISSIBILI A CONTRIBUTO",null,null,null,100000.004,112880.34899999999,12880.348999999987,0.11410621170209165]
["GRUPPO 2 (max. 5%)",25000]

{"sheet":"Esempio_3","index":3,"n_rows":96,"n_cols":12,"rows_kept":96,"cut":false,"hidden":false,"merged":[[7,1,9,1],[7,2,9,2],[7,3,9,3],[7,6,12,6],[0,0,0,6],[1,1,1,6],[3,0,3,6],[4,1,4,6],[5,2,5,5],[16,1,16,6],[17,2,17,6],[19,1,21,1],[19,2,21,2],[19,3,21,3],[19,6,24,6],[28,1,28,6],[29,2,29,6],[31,1,33,1],[31,2,33,2],[31,3,33,3],[31,6,36,6],[40,1,40,6],[41,2,41,6],[43,1,45,1],[43,2,45,2],[43,3,45,3],[43,6,48,6],[52,1,52,6],[53,2,53,6],[55,1,57,1],[55,2,57,2],[55,3,57,3],[55,6,60,6],[84,0,84,4],[64,1,64,6],[65,2,65,6],[67,1,69,1],[67,2,69,2],[67,3,69,3],[67,6,72,6],[76,0,77,6],[79,0,79,4],[80,0,80,4],[81,0,81,4],[83,0,83,6],[85,0,85,4],[85,6,91,6],[86,0,86,4],[87,0,87,4],[88,0,88,4],[89,0,89,4],[90,0,90,4],[91,0,91,4],[94,9,95,9],[92,0,92,4],[93,0,93,1],[94,2,95,5],[94,6,95,6],[94,7,95,7],[94,8,95,8]]}
["CALCOLO SPESE GENERALI (spese di progettazione e altre spese generali)"]
["RICHIEDENTE"]
[]
["SPESE DI PROGETTAZIONE - COSTI SEMPLIFICATI",null,null,null,null,null,null,"importo max richiedibile","importo max delle spese generali"]
["Progettazione 1"," Edifici rurali di tipo complesso"]
["Vp1",850000]
[null,"Relazione geologica","Studio Impatto Ambientale (VIA)","Piano di monitoraggio ambientale (VIA)","Altre prestazioni","costo semplificato P1","costo semplificato P1 nel rispetto dei limiti previsti dalle D.G.","Totale spesa progettazioni P1-P2-P4-P5 (PT)",1350000]
["P",null,null,null,6.5307461368293726E-2,null,null,null,50000,0.1,0,500000]
["Q",null,null,null,1.27,null,null,null,25000,0.05,500000,1000000]
["G",null,null,null,0.95,null,null,null,8750,2.5000000000000001E-2,1000000]
["CP",1743.3826812266011,0,0,66974.434319719425,68717.81700094603,null,"totale spese generali (SP) 10%",83750]
[null,null,null,null,null,null,null,"totale CS (CST)",96405.817470612965]
["spese accessorie: 9,58%",6579.7309778405825,9.5750000000000002E-2,null,null,null,null,null,null,"P/PT","SP/CST","riduzione"]
["TOTALE P1",null,null,null,null,75297.547978786606,65412.75,65412.75,9884.7979116481292,0.62962962962962965,0.86872350857383895,0.13127649142616105]
["incidenza parziale",8.8585350563278362E-2]
[]
["Progettazione 2"," Manutenzione straordinaria"]
["Vp2",500000]
[null,"Relazione geologica","Studio Impatto Ambientale (VIA)","Piano di monitoraggio ambientale (VIA)","Altre prestazioni","costo semplificato P2","costo semplificato P2 nel rispetto dei limiti previsti dalle D.G."]
["P",null,null,null,6.5307461368293726E-2]
["Q",null,null,null,0.62000000000000011]
["G",null,null,null,0.95]
["CP",0,0,0,19233.047372962508,19233.047372962508]
[]
["spese accessorie: 9,75%",1875.2221188638446,9.7500000000000003E-2]
["TOTALE P2",null,null,null,null,21108.269491826351,18337.25,18337.25,2771.0195589648388,0.37037037037037035]
["incidenza parziale",4.2216538983652706E-2]
[]
["Progettazione 3"," Impianti tecnologici"]
["Vp3",500000]
[null,"Relazione geologica","Studio Impatto Ambientale (VIA)","Piano di monitoraggio ambientale (VIA)","Altre prestazioni","costo semplificato P3","costo semplificato P3 nel rispetto dei limiti previsti dalle D.G."]
["P",null,null,null,8.253055608807533E-2]
["Q",null,null,null,0.67500000000000004]
["G",null,null,null,0.7]
["CP",0,0,0,19497.843875807797,19497.843875807797]
[]
["spese accessorie: 9,75%",1901.0397778912602,9.7500000000000003E-2]
["TOTALE P3",null,null,null,null,21398.883653699057,21398.883999999998,21398.883999999998,25000,0.05]
["incidenza parziale",4.2797767307398114E-2]
[]
["Progettazione 4"," Edifici rurali di tipo semplice"]
["Vp4",0]
[null,"Relazione geologica","Studio Impatto Ambientale (VIA)","Piano di monitoraggio ambientale (VIA)","Altre prestazioni","costo semplificato P4","costo semplificato P4 nel rispetto dei limiti previsti dalle D.G."]
["P",null,null,null,6.5307461368293726E-2]
["Q",null,null,null,0.64000000000000012]
["G",null,null,null,0.65]
["CP",0,0,0,0,0]
[]
["spese accessorie: 10,00%",0,0.1]
["TOTALE P4",null,null,null,null,0,0,0,0,false]
["incidenza parziale",0]
[]
["Progettazione 5"," Miglioramenti fondiari"]
["Vp5",0]
[null,"Relazione geologica","Studio Impatto Ambientale (VIA)","Piano di monitoraggio ambientale (VIA)","Altre prestazioni","costo semplificato P5","costo semplificato P5 nel rispetto dei limiti previsti dalle D.G."]
["P",null,null,null,8.253055608807533E-2]
["Q",null,null,null,0.30499999999999999]
["G",null,null,null,0.65]
["CP",0,0,0,0,0]
[]
["spese accessorie: 10,00%",0,0.1]
["TOTALE P5",null,null,null,null,0,0,0,0,false]
["incidenza parziale",0]
[]
["Progettazione 6"," Macchine, attrezzature e beni immateriali"]
["Vp6",500000]
[null,"Relazione geologica","Studio Impatto Ambientale (VIA)","Piano di monitoraggio ambientale (VIA)","Altre prestazioni","costo semplificato P6","costo semplificato P6 nel rispetto dei limiti previsti dalle D.G."]
["P",null,null,null,8.253055608807533E-2]
["Q",null,null,null,4.4999999999999998E-2]
["G",null,null,null,0.65]
["CP","/","/","/",1207.0093827881019,1207.0093827881019]
[]
["spese accessorie: 9,75%",117.68341482183995,9.7500000000000003E-2]
["TOTALE P6",null,null,null,null,1324.6927976099419,1324.693,1324.693,25000,0.05]
["incidenza parziale",2.6493855952198836E-3]
[]
["TOTALE SPESE DI PROGETTAZIONE",null,null,null,null,null,null,"totale spese 10% max",83750]
[null,null,null,null,null,null,null,"totale spese 5% max",50000]
[null,null,null,null,null,"costo semplificato ","costo semplificato nel rispetto dei limiti previsti dalle D.G."]
["Costi procedurali e amministrativi",null,null,null,null,1188,1188,1188]
["CP totale",null,null,null,null,120317.39392192196,107661.57699999999,107661.57699999999,-12655.816921921971]
["inc. tot.",null,null,null,null,5.1198891030605091E-2,4.581343702127659E-2]
[]
["ALTRE SPESE GENERALI (da rendicontare a saldo)"]
[null,null,null,null,null,"costo effettivo","costo max ammissibile"]
["SPESE PER AZIONI INFORMATIVE E PUBBLICITARIE",null,null,null,null,1000]
["SPESE PER GARANZIE FIDEIUSSORIE",null,null,null,null,4000]
[]
[]
[]
[]
[]
["TOTALE",null,null,null,null,5000,5000,5000,133750]
["SPESE GENERALI calcolate con i parametri delle \nDisposizioni Generali (D.G.)"]
["GRUPPO 1 (max. 10%)",83750,"TOTALE SPESE GENERALI AMMISSIBILI A CONTRIBUTO",null,null,null,112661.57699999999,112661.57699999999,0,0]
["GRUPPO 2 (max. 5%)",50000]

{"sheet":"Progettazioni","index":4,"n_rows":11,"n_cols":7,"rows_kept":11,"cut":false,"hidden":false,"merged":[[10,0,10,2],[2,0,2,1],[0,0,0,2]]}
["TIPOLOGIE DI PROGETTAZIONI",null,null,null,null,"Nota: inserire i valori nei campi verdi"]
[]
["Categoria",null,"Opere/Acquisizioni/Investimenti","G","Rif. DM","Valore delle Opere/Investimenti (V)"]
["Progettazione 1","EDILIZIA","Edilizia 1: Edifici rurali per l'attività agricola con corredi tecnici di tipo complesso ",0.95,"E.02",null,"Vp1"]
["Progettazione 2","EDILIZIA","Edilizia 2: Interventi di manutenzione straordinaria, ristrutturazione, riqualificazione su edifici e manufatti esistenti",0.95,"E.20",null,"Vp2"]
["Progettazione 3","IMPIANTI","Impianti: Impianti per la trasformazione, commercializzazione e/o sviluppo di prodotti agricoli. Impianti per la produzione di energia.",0.7,"IB.05",null,"Vp3"]
["Progettazione 4","EDILIZIA","Edilizia 3: Edifici rurali e/o strutture per l'attività agricola con corredi tecnici di tipo semplice (quali tettoie, depositi e ricoveri) ",0.65,"E.01",null,"Vp4"]
["Progettazione 5","RURALITA'","Miglioramenti fondiari",0.65,"/",null,"Vp5"]
["Progettazione 6","RURALITA'","Macchine e attrezzature",0.65,"/",null,"Vp6"]
[]
[{"$f":"IF(F11>10000000,\"ATTENZIONE: IL VALORE TOTALE DEGLI INVESTIMENTI NON PUO' ESSERE SUPERIORE A € 10.000.000 =>\",\"\")","v":""},null,null,null,null,{"$f":"SUM(F4:F9)","v":0},"V"]

{"sheet":"Prestazioni","index":5,"n_rows":31,"n_cols":42,"rows_kept":31,"cut":false,"hidden":false,"merged":[]}
["rif. DM",null,"DESCRIZIONE PRESTAZIONI PER LA DEFINIZIONE DEL PARAMETRO Q",null,"Progettazione 1","Progettazione 2","Progettazione 3","Progettazione 4","Progettazione 5","Progettazione 6",null,"Progettazione 1","Progettazione 2","Progettazione 3","Progettazione 4","Progettazione 5","Progettazione 6",null,"Progettazione 1","Progettazione 2","Progettazione 3","Progettazione 4","Progettazione 5","Progettazione 6",null,"Progettazione 1","Progettazione 2","Progettazione 3","Progettazione 4","Progettazione 5","Progettazione 6",null,"Progettazione 1","Progettazione 2","Progettazione 3","Progettazione 4","Progettazione 5","Progettazione 6",null,"Quota Valore Edilizia interessata dalla prestazione (ƩVp)","Quota Valore Impianti interessata dalla prestazione (ƩVp)","Quota Valore Ruralità interessata dalla prestazione (ƩVp)"]
[null,null,null,null,null,null,null,null,null,null,null,null,null,null,null,null,null,null,"E.01","E.20","IB.05","E.02","P.","P.",null,null,null,null,null,null,null,null,null,null,null,null,null,null,null,{"$f":"Progettazioni!F4+Progettazioni!F5+Progettazioni!F7","v":0},{"$f":"Progettazioni!F6","v":0},{"$f":"Progettazioni!F8+Progettazioni!F9","v":0}]
["QaI.01",null,"Relazione illustrativa",null,"n","n","n","n","n","þ",null,0,0,0,0,0,1,null,null,null,null,null,null,0.04,null,{"$f":"IF(LEN(L3)=1,L3,IF(L3=TRUE,1,0))*S3","v":0},0,0,0,0,0.04]
["QaI.02",null,"Relazione illustrativa, Elaborati progettuali e tecnico economici",null,"þ","þ","þ","þ","þ","n",null,1,1,1,1,1,0,null,0.09,0.09,0.09,0.09,0.08,null,null,{"$f":"IF(LEN(L4)=1,L4,IF(L4=TRUE,1,0))*S4","v":0.09},{"$f":"IF(LEN(M4)=1,M4,IF(M4=TRUE,1,0))*T4","v":0.09},{"$f":"IF(LEN(N4)=1,N4,IF(N4=TRUE,1,0))*U4","v":0.09},{"$f":"IF(LEN(O4)=1,O4,IF(O4=TRUE,1,0))*V4","v":0.09},{"$f":"IF(LEN(P4)=1,P4,IF(P4=TRUE,1,0))*W4","v":0.08},{"$f":"IF(LEN(Q4)=1,Q4,IF(Q4=TRUE,1,0))*X4","v":0}]
["QaIV.01",null,"Piani economici, aziendali, business plan e di investimento",null,"n","n","n","n","n","þ",null,0,0,0,0,0,1,null,null,null,null,null,null,5.0000000000000001E-3,null,0,0,0,0,0,5.0000000000000001E-3]
[]
["QbII.06",null,"Studio di inserimento urbanistico",null,null,null,"n",null,"n","n",null,false,false,0,false,0,0,null,0.03,0.03,null,0.03,null,null,null,{"$f":"IF(LEN(L7)=1,L7,IF(L7=TRUE,1,0))*S7","v":0},{"$f":"IF(LEN(M7)=1,M7,IF(M7=TRUE,1,0))*T7","v":0},{"$f":"IF(LEN(N7)=1,N7,IF(N7=TRUE,1,0))*U7","v":0},{"$f":"IF(LEN(O7)=1,O7,IF(O7=TRUE,1,0))*V7","v":0},{"$f":"IF(LEN(P7)=1,P7,IF(P7=TRUE,1,0))*W7","v":0},{"$f":"IF(LEN(Q7)=1,Q7,IF(Q7=TRUE,1,0))*X7","v":0}]
["QbII.07",null,"Rilievi planoaltimetrici",null,null,null,"n",null,null,"n",null,false,false,0,false,false,0,null,0.02,0.02,null,0.02,0.02,null,null,0,0,0,0,0,0]
["QbII.09",null,"Relazione geotecnica",null,"þ",null,"n",null,null,"n",null,1,false,0,false,false,0,null,0.06,0.06,null,0.06,0.06,null,null,0.06,{"$f":"IF(LEN(M9)=1,M9,IF(M9=TRUE,1,0))*T9","v":0},{"$f":"IF(LEN(N9)=1,N9,IF(N9=TRUE,1,0))*U9","v":0},{"$f":"IF(LEN(O9)=1,O9,IF(O9=TRUE,1,0))*V9","v":0},{"$f":"IF(LEN(P9)=1,P9,IF(P9=TRUE,1,0))*W9","v":0},{"$f":"IF(LEN(Q9)=1,Q9,IF(Q9=TRUE,1,0))*X9","v":0}]
["QbII.10",null,"Relazione idrologica",null,null,null,"n",null,null,"n",null,false,false,0,false,false,0,null,0.03,0.03,null,0.03,0.03,null,null,0,0,0,0,0,0]
["QbII.11",null,"Relazione idraulica",null,null,null,"n",null,"n","n",null,false,false,0,false,0,0,null,0.03,0.03,null,0.03,null,null,null,0,0,0,0,0,0]
["QbII.12",null,"Relazione sismica e sulle strutture",null,"þ",null,"n","þ","n","n",null,1,false,0,1,0,0,null,0.03,0.03,null,0.03,null,null,null,0.03,0,0,0.03,0,0]
["QbII.13",null,"Relazione geologica",null,"þ",null,"n","þ",null,"n",null,1,false,0,1,false,0,null,null,null,null,null,null,null,null,null,null,null,null,null,null,null,{"$f":"IF(OR(L13=1,L13=TRUE),L$31,0)","v":0},0,0,0,0,0,null,{"$f":"AG13+AH13+AJ13","v":0},{"$f":"AI13","v":0},{"$f":"AK13+AL13","v":0}]
["QbII.18",null,"Elaborati di progettazione antincendio (d.m. 16/02/1982)",null,null,null,null,null,"n","n",null,false,false,false,false,0,0,null,0.06,0.06,0.06,0.06,null,null,null,{"$f":"IF(LEN(L14)=1,L14,IF(L14=TRUE,1,0))*S14","v":0},{"$f":"IF(LEN(M14)=1,M14,IF(M14=TRUE,1,0))*T14","v":0},{"$f":"IF(LEN(N14)=1,N14,IF(N14=TRUE,1,0))*U14","v":0},{"$f":"IF(LEN(O14)=1,O14,IF(O14=TRUE,1,0))*V14","v":0},{"$f":"IF(LEN(P14)=1,P14,IF(P14=TRUE,1,0))*W14","v":0},{"$f":"IF(LEN(Q14)=1,Q14,IF(Q14=TRUE,1,0))*X14","v":0}]
["QbII.19",null,"Relazione paesaggistica (d.lgs. 42/2004)",null,null,null,null,null,null,"n",null,false,false,false,false,false,0,null,0.02,0.02,0.02,0.02,0.02,null,null,{"$f":"IF(LEN(L15)=1,L15,IF(L15=TRUE,1,0))*S15","v":0},0,0,0,0,0]
["QbII.24",null,"Studio di impatto ambientale o di fattibilità ambientale (VIA)",null,null,null,null,null,null,"n",null,false,false,false,false,false,0,null,null,null,null,null,null,null,null,null,null,null,null,null,null,null,{"$f":"IF(OR(L16=1,L16=TRUE),L$31,0)","v":0},0,0,0,0,0,null,{"$f":"AG16+AH16+AJ16","v":0},{"$f":"AI16","v":0},{"$f":"AK16+AL16","v":0}]
["QbII.25",null,"Piano di monitoraggio ambientale (VIA)",null,null,null,null,null,null,"n",null,false,false,false,false,false,0,null,null,null,null,null,null,null,null,null,null,null,null,null,null,null,0,0,0,0,0,0,null,{"$f":"AG17+AH17+AJ17","v":0},{"$f":"AI17","v":0},{"$f":"AK17+AL17","v":0}]
[]
["QbIII.01",null,"Relazione generale e specialistiche, Elaborati grafici, Calcoli esecutivi",null,"þ","þ","þ","þ","þ","n",null,1,1,1,1,1,0,null,7.0000000000000007E-2,7.0000000000000007E-2,0.04,7.0000000000000007E-2,0.04,null,null,{"$f":"IF(LEN(L19)=1,L19,IF(L19=TRUE,1,0))*S19","v":7.0000000000000007E-2},{"$f":"IF(LEN(M19)=1,M19,IF(M19=TRUE,1,0))*T19","v":7.0000000000000007E-2},{"$f":"IF(LEN(N19)=1,N19,IF(N19=TRUE,1,0))*U19","v":0.04},{"$f":"IF(LEN(O19)=1,O19,IF(O19=TRUE,1,0))*V19","v":7.0000000000000007E-2},{"$f":"IF(LEN(P19)=1,P19,IF(P19=TRUE,1,0))*W19","v":0.04},{"$f":"IF(LEN(Q19)=1,Q19,IF(Q19=TRUE,1,0))*X19","v":0}]
["QbIII.03",null,"Computo metrico estimativo, Quadro economico, Elenco prezzi e eventuale analisi, incidenza manodopera",null,"þ","þ","þ","þ","þ","n",null,1,1,1,1,1,0,null,0.04,0.04,0.05,0.04,0.03,null,null,0.04,0.04,0.05,0.04,0.03,0]
["QbIII.06",null,"Progettazione integrale e coordinata - Integrazione delle prestazioni specialistiche",null,"þ",null,null,"þ",null,"n",null,1,false,false,1,false,0,null,0.03,0.03,0.03,0.03,0.03,null,null,0.03,0,0,0.03,0,0]
["QbIII.07",null,"Piano di Sicurezza e Coordinamento",null,"þ",null,null,null,"n","n",null,1,false,false,false,0,0,null,0.1,0.1,0.1,0.1,null,null,null,0.1,0,0,0,0,0]
[]
["QcI.01",null,"Direzione lavori, assistenza al collaudo, prove di accettazione",null,"þ","þ","þ","þ","þ","n",null,1,1,1,1,1,0,null,0.32,0.32,0.45,0.32,0.11,null,null,{"$f":"IF(LEN(L24)=1,L24,IF(L24=TRUE,1,0))*S24","v":0.32},{"$f":"IF(LEN(M24)=1,M24,IF(M24=TRUE,1,0))*T24","v":0.32},{"$f":"IF(LEN(N24)=1,N24,IF(N24=TRUE,1,0))*U24","v":0.45},{"$f":"IF(LEN(O24)=1,O24,IF(O24=TRUE,1,0))*V24","v":0.32},{"$f":"IF(LEN(P24)=1,P24,IF(P24=TRUE,1,0))*W24","v":0.11},{"$f":"IF(LEN(Q24)=1,Q24,IF(Q24=TRUE,1,0))*X24","v":0}]
["QcI.09",null,"Contabilità dei lavori",null,"þ","þ","þ","þ","þ","n",null,1,1,1,1,1,0,null,0.06,0.06,4.4999999999999998E-2,0.06,4.4999999999999998E-2,null,null,0.06,0.06,4.4999999999999998E-2,0.06,4.4999999999999998E-2,0]
["QcI.11",null,"Certificato di regolare esecuzione",null,"þ","þ",null,null,"n","n",null,1,1,false,false,0,0,null,0.04,0.04,0.04,0.04,null,null,null,0.04,0.04,0,0,0,0]
["QcI.12",null,"Coordinamento della sicurezza in esecuzione",null,"þ",null,null,null,"n","n",null,1,false,false,false,0,0,null,0.25,0.25,0.25,0.25,null,null,null,0.25,0,0,0,0,0]
["QdI.04",null,"Collaudo tecnico funzionale degli impianti (d.m. 22/01/2008 n°37)",null,"þ",null,"n",null,"n","n",null,1,false,0,false,0,0,null,0.18,0.18,null,0.18,null,null,null,{"$f":"IF(LEN(L28)=1,L28,IF(L28=TRUE,1,0))*S28","v":0.18},{"$f":"IF(LEN(M28)=1,M28,IF(M28=TRUE,1,0))*T28","v":0},{"$f":"IF(LEN(N28)=1,N28,IF(N28=TRUE,1,0))*U28","v":0},{"$f":"IF(LEN(O28)=1,O28,IF(O28=TRUE,1,0))*V28","v":0},{"$f":"IF(LEN(P28)=1,P28,IF(P28=TRUE,1,0))*W28","v":0},{"$f":"IF(LEN(Q28)=1,Q28,IF(Q28=TRUE,1,0))*X28","v":0}]
["QdI.05",null,"Attestato di certificazione energetica (art.6 d.lgs. 311/2006) esclusa diagnosi energetica (13)",null,null,null,null,null,"n","n",null,false,false,false,false,0,0,null,0.03,0.03,0.03,0.03,null,null,null,0,0,0,0,0,0]
[]
[null,null,null,null,null,null,null,null,null,null,null,{"$f":"Progettazioni!F4","v":0},{"$f":"Progettazioni!F5","v":0},{"$f":"Progettazioni!F6","v":0},{"$f":"Progettazioni!F7","v":0},{"$f":"Progettazioni!F8","v":0},{"$f":"Progettazioni!F9","v":0},null,null,null,null,null,null,null,null,{"$f":"SUM(Z3:Z29)","v":1.27},0.62000000000000011,0.67500000000000004,0.64000000000000012,0.30499999999999999,4.4999999999999998E-2]

{"sheet":"Parametri","index":6,"n_rows":28,"n_cols":41,"rows_kept":28,"cut":false,"hidden":true,"merged":[[0,37,0,39],[2,29,2,34],[11,29,11,34],[20,29,20,34],[2,1,2,6],[11,1,11,6],[20,1,20,6],[0,9,0,11],[0,23,0,25],[2,15,2,20],[11,15,11,20],[20,15,20,20]]}
[null,"fino a 250.000","da 250.000 a 500.000","da 500.000 a 1.000.000","da 1.000.000 a 2.500.000","da 2.500.000 a 5.000.000","da 5.000.000 a 10.000.000",null,null,"EDILIZIA",null,null,null,null,null,"fino a 250.000","da 250.000 a 500.000","da 500.000 a 1.000.000","da 1.000.000 a 2.500.000","da 2.500.000 a 5.000.000","da 5.000.000 a 10.000.000",null,null,"IMPIANTI",null,null,null,null,null,"fino a 250.000","da 250.000 a 500.000","da 500.000 a 1.000.000","da 1.000.000 a 2.500.000","da 2.500.000 a 5.000.000","da 5.000.000 a 10.000.000",null,null,"RURALITA'"]
[]
[null,"Relazione geologica - EDILIZIA",null,null,null,null,null,null,null,"Progettazione 1","Progettazione 2","Progettazione 4",null,null,null,"Relazione geologica - IMPIANTI",null,null,null,null,null,null,null,null,"Progettazione 3",null,null,null,null,"Relazione geologica - RURALITA'",null,null,null,null,null,null,null,null,"Progettazione 5"]
[]
["Vp",{"$f":"SUM(J5:L5)","v":0},null,null,null,null,null,null,null,{"$f":"Prestazioni!AG13","v":0},{"$f":"Prestazioni!AH13","v":0},{"$f":"Prestazioni!AJ13","v":0},null,null,"Vp",{"$f":"SUM(X5:Z5)","v":0},null,null,null,null,null,null,null,null,{"$f":"Prestazioni!AI13","v":0},null,null,null,"Vp",{"$f":"SUM(AL5:AN5)","v":0},null,null,null,null,null,null,null,null,{"$f":"Prestazioni!AK13","v":0}]
[null,{"$f":"MIN(B5,250000)","v":0},{"$f":"MIN(B5-B6,250000)","v":0},{"$f":"MIN(B5-B6-C6,500000)","v":0},{"$f":"MIN(B5-B6-C6-D6,1500000)","v":0},{"$f":"MIN(B5-B6-C6-D6-E6,2500000)","v":0},{"$f":"B5-B6-C6-D6-E6-F6","v":0},null,null,{"$f":"H10/B5*J5","v":{"$error":"#DIV/0!"}},{"$f":"H10/B5*K5","v":{"$error":"#DIV/0!"}},{"$f":"H10/B5*L5","v":{"$error":"#DIV/0!"}},null,null,null,{"$f":"MIN(P5,250000)","v":0},{"$f":"MIN(P5-P6,250000)","v":0},{"$f":"MIN(P5-P6-Q6,500000)","v":0},{"$f":"MIN(P5-P6-Q6-R6,1500000)","v":0},{"$f":"MIN(P5-P6-Q6-R6-S6,2500000)","v":0},{"$f":"P5-P6-Q6-R6-S6-T6","v":0},null,null,{"$f":"V10/P5*X5","v":{"$error":"#DIV/0!"}},{"$f":"V10/P5*Y5","v":{"$error":"#DIV/0!"}},{"$f":"V10/P5*Z5","v":{"$error":"#DIV/0!"}},null,null,null,{"$f":"MIN(AD5,250000)","v":0},{"$f":"MIN(AD5-AD6,250000)","v":0},{"$f":"MIN(AD5-AD6-AE6,500000)","v":0},{"$f":"MIN(AD5-AD6-AE6-AF6,1500000)","v":0},{"$f":"MIN(AD5-AD6-AE6-AF6-AG6,2500000)","v":0},{"$f":"AD5-AD6-AE6-AF6-AG6-AH6","v":0},null,null,{"$f":"AJ10/AD5*AL5","v":{"$error":"#DIV/0!"}},{"$f":"AJ10/AD5*AM5","v":{"$error":"#DIV/0!"}},{"$f":"AJ10/AD5*AN5","v":{"$error":"#DIV/0!"}}]
["P",{"$f":"IF(B6=0,0,MIN(10/(POWER(Prestazioni!$AN$2,0.4))+0.03,10/(POWER(25000,0.4))+0.03))","v":0},{"$f":"IF(C6=0,0,B7)","v":0},{"$f":"IF(D6=0,0,C7)","v":0},{"$f":"IF(E6=0,0,D7)","v":0},{"$f":"IF(F6=0,0,E7)","v":0},{"$f":"IF(G6=0,0,E7)","v":0},null,null,null,null,null,null,null,"P",{"$f":"IF(P6=0,0,MIN(10/(POWER(Prestazioni!$AO$2,0.4))+0.03,10/(POWER(25000,0.4))+0.03))","v":0},{"$f":"IF(Q6=0,0,P7)","v":0},{"$f":"IF(R6=0,0,Q7)","v":0},{"$f":"IF(S6=0,0,R7)","v":0},{"$f":"IF(T6=0,0,S7)","v":0},{"$f":"IF(U6=0,0,S7)","v":0},null,null,null,null,null,null,null,"P",{"$f":"IF(AD6=0,0,MIN(10/(POWER(Prestazioni!$AP$2,0.4))+0.03,10/(POWER(25000,0.4))+0.03))","v":0},{"$f":"IF(AE6=0,0,AD7)","v":0},{"$f":"IF(AF6=0,0,AE7)","v":0},{"$f":"IF(AG6=0,0,AF7)","v":0},{"$f":"IF(AH6=0,0,AG7)","v":0},{"$f":"IF(AI6=0,0,AG7)","v":0}]
["Q",6.4000000000000001E-2,1.9E-2,2.1000000000000001E-2,2.9000000000000001E-2,3.7999999999999999E-2,3.7999999999999999E-2,null,null,null,null,null,null,null,"Q",6.4000000000000001E-2,1.9E-2,2.1000000000000001E-2,2.9000000000000001E-2,3.7999999999999999E-2,3.7999999999999999E-2,null,null,null,null,null,null,null,"Q",0.13300000000000001,0.107,9.6000000000000002E-2,7.9000000000000001E-2,5.3999999999999999E-2,5.3999999999999999E-2]
["G",null,null,null,null,null,null,null,null,{"$f":"IF(J5>0,VLOOKUP(J3,Progettazioni!$A$4:$D$9,4,FALSE),0)","v":0},{"$f":"IF(K5>0,VLOOKUP(K3,Progettazioni!$A$4:$D$9,4,FALSE),0)","v":0},{"$f":"IF(L5>0,VLOOKUP(L3,Progettazioni!$A$4:$D$9,4,FALSE),0)","v":0},null,null,"G",null,null,null,null,null,null,null,null,{"$f":"IF(X5>0,VLOOKUP(X3,Progettazioni!$A$4:$D$9,4,FALSE),0)","v":0},{"$f":"IF(Y5>0,VLOOKUP(Y3,Progettazioni!$A$4:$D$9,4,FALSE),0)","v":0},{"$f":"IF(Z5>0,VLOOKUP(Z3,Progettazioni!$A$4:$D$9,4,FALSE),0)","v":0},null,null,"G",null,null,null,null,null,null,null,null,{"$f":"IF(AL5>0,VLOOKUP(AL3,Progettazioni!$A$4:$D$9,4,FALSE),0)","v":0},{"$f":"IF(AM5>0,VLOOKUP(AM3,Progettazioni!$A$4:$D$9,4,FALSE),0)","v":0},{"$f":"IF(AN5>0,VLOOKUP(AN3,Progettazioni!$A$4:$D$9,4,FALSE),0)","v":0}]
[null,{"$f":"B6*B7*B8","v":0},{"$f":"C6*C7*C8","v":0},0,0,0,0,{"$f":"SUM(B10:G10)","v":0},null,{"$f":"J6*J9","v":{"$error":"#DIV/0!"}},{"$f":"K6*K9","v":{"$error":"#DIV/0!"}},{"$error":"#DIV/0!"},{"$f":"SUM(J10:L10)","v":{"$error":"#DIV/0!"}},null,null,{"$f":"P6*P7*P8","v":0},{"$f":"Q6*Q7*Q8","v":0},{"$f":"R6*R7*R8","v":0},0,0,0,{"$f":"SUM(P10:U10)","v":0},null,{"$f":"X6*X9","v":{"$error":"#DIV/0!"}},{"$f":"Y6*Y9","v":{"$error":"#DIV/0!"}},{"$error":"#DIV/0!"},{"$f":"SUM(X10:Z10)","v":{"$error":"#DIV/0!"}},null,null,{"$f":"AD6*AD7*AD8","v":0},{"$f":"AE6*AE7*AE8","v":0},0,0,0,0,{"$f":"SUM(AD10:AI10)","v":0},null,{"$f":"AL6*AL9","v":{"$error":"#DIV/0!"}},{"$f":"AM6*AM9","v":{"$error":"#DIV/0!"}},{"$error":"#DIV/0!"},{"$f":"SUM(AL10:AN10)","v":{"$error":"#DIV/0!"}}]
[]
[null,"Studio Impatto Ambientale (VIA) - EDILIZIA",null,null,null,null,null,null,null,"Progettazione 1","Progettazione 2","Progettazione 4",null,null,null,"Studio Impatto Ambientale (VIA) - IMPIANTI",null,null,null,null,null,null,null,null,"Progettazione 3",null,null,null,null,"Studio Impatto Ambientale (VIA) - RURALITA'",null,null,null,null,null,null,null,null,"Progettazione 5"]
[]
["Vp",{"$f":"SUM(J14:L14)","v":0},null,null,null,null,null,null,null,{"$f":"Prestazioni!AG16","v":0},{"$f":"Prestazioni!AH16","v":0},{"$f":"Prestazioni!AJ16","v":0},null,null,"Vp",{"$f":"SUM(X14:Z14)","v":0},null,null,null,null,null,null,null,null,{"$f":"Prestazioni!AI16","v":0},null,null,null,"Vp",{"$f":"SUM(AL14:AN14)","v":0},null,null,null,null,null,null,null,null,{"$f":"Prestazioni!AK16","v":0}]
[null,{"$f":"MIN(B14,250000)","v":0},{"$f":"MIN(B14-B15,250000)","v":0},{"$f":"MIN(B14-B15-C15,500000)","v":0},{"$f":"MIN(B14-B15-C15-D15,1500000)","v":0},{"$f":"MIN(B14-B15-C15-D15-E15,2500000)","v":0},{"$f":"B14-B15-C15-D15-E15-F15","v":0},null,null,{"$f":"H19/B14*J14","v":{"$error":"#DIV/0!"}},{"$f":"H19/B14*K14","v":{"$error":"#DIV/0!"}},{"$f":"H19/B14*L14","v":{"$error":"#DIV/0!"}},null,null,null,{"$f":"MIN(P14,250000)","v":0},{"$f":"MIN(P14-P15,250000)","v":0},{"$f":"MIN(P14-P15-Q15,500000)","v":0},{"$f":"MIN(P14-P15-Q15-R15,1500000)","v":0},{"$f":"MIN(P14-P15-Q15-R15-S15,2500000)","v":0},{"$f":"P14-P15-Q15-R15-S15-T15","v":0},null,null,{"$f":"V19/P14*X14","v":{"$error":"#DIV/0!"}},{"$f":"V19/P14*Y14","v":{"$error":"#DIV/0!"}},{"$f":"V19/P14*Z14","v":{"$error":"#DIV/0!"}},null,null,null,{"$f":"MIN(AD14,250000)","v":0},{"$f":"MIN(AD14-AD15,250000)","v":0},{"$f":"MIN(AD14-AD15-AE15,500000)","v":0},{"$f":"MIN(AD14-AD15-AE15-AF15,1500000)","v":0},{"$f":"MIN(AD14-AD15-AE15-AF15-AG15,2500000)","v":0},{"$f":"AD14-AD15-AE15-AF15-AG15-AH15","v":0},null,null,{"$f":"AJ19/AD14*AL14","v":{"$error":"#DIV/0!"}},{"$f":"AJ19/AD14*AM14","v":{"$error":"#DIV/0!"}},{"$f":"AJ19/AD14*AN14","v":{"$error":"#DIV/0!"}}]
["P",{"$f":"IF(B15=0,0,MIN(10/(POWER(Prestazioni!$AN$2,0.4))+0.03,10/(POWER(25000,0.4))+0.03))","v":0},{"$f":"IF(C15=0,0,B16)","v":0},{"$f":"IF(D15=0,0,C16)","v":0},{"$f":"IF(E15=0,0,D16)","v":0},{"$f":"IF(F15=0,0,E16)","v":0},{"$f":"IF(G15=0,0,E16)","v":0},null,null,null,null,null,null,null,"P",{"$f":"IF(P15=0,0,MIN(10/(POWER(Prestazioni!$AO$2,0.4))+0.03,10/(POWER(25000,0.4))+0.03))","v":0},{"$f":"IF(Q15=0,0,P16)","v":0},{"$f":"IF(R15=0,0,Q16)","v":0},{"$f":"IF(S15=0,0,R16)","v":0},{"$f":"IF(T15=0,0,S16)","v":0},{"$f":"IF(U15=0,0,S16)","v":0},null,null,null,null,null,null,null,"P",{"$f":"IF(AD15=0,0,MIN(10/(POWER(Prestazioni!$AP$2,0.4))+0.03,10/(POWER(25000,0.4))+0.03))","v":0},{"$f":"IF(AE15=0,0,AD16)","v":0},{"$f":"IF(AF15=0,0,AE16)","v":0},{"$f":"IF(AG15=0,0,AF16)","v":0},{"$f":"IF(AH15=0,0,AG16)","v":0},{"$f":"IF(AI15=0,0,AG16)","v":0}]
["Q",0.09,0.09,0.09,0.09,0.09,4.4999999999999998E-2,null,null,null,null,null,null,null,"Q",0.09,0.09,0.09,0.09,0.09,4.4999999999999998E-2,null,null,null,null,null,null,null,"Q",0.1,0.1,0.1,0.1,0.1,0.06]
["G",null,null,null,null,null,null,null,null,{"$f":"IF(J14>0,VLOOKUP(J12,Progettazioni!$A$4:$D$9,4,FALSE),0)","v":0},{"$f":"IF(K14>0,VLOOKUP(K12,Progettazioni!$A$4:$D$9,4,FALSE),0)","v":0},{"$f":"IF(L14>0,VLOOKUP(L12,Progettazioni!$A$4:$D$9,4,FALSE),0)","v":0},null,null,"G",null,null,null,null,null,null,null,null,{"$f":"IF(X14>0,VLOOKUP(X12,Progettazioni!$A$4:$D$9,4,FALSE),0)","v":0},{"$f":"IF(Y14>0,VLOOKUP(Y12,Progettazioni!$A$4:$D$9,4,FALSE),0)","v":0},{"$f":"IF(Z14>0,VLOOKUP(Z12,Progettazioni!$A$4:$D$9,4,FALSE),0)","v":0},null,null,"G",null,null,null,null,null,null,null,null,{"$f":"IF(AL14>0,VLOOKUP(AL12,Progettazioni!$A$4:$D$9,4,FALSE),0)","v":0},{"$f":"IF(AM14>0,VLOOKUP(AM12,Progettazioni!$A$4:$D$9,4,FALSE),0)","v":0},{"$f":"IF(AN14>0,VLOOKUP(AN12,Progettazioni!$A$4:$D$9,4,FALSE),0)","v":0}]
[null,{"$f":"B15*B16*B17","v":0},{"$f":"C15*C16*C17","v":0},0,0,0,0,{"$f":"SUM(B19:G19)","v":0},null,{"$f":"J15*J18","v":{"$error":"#DIV/0!"}},{"$f":"K15*K18","v":{"$error":"#DIV/0!"}},{"$f":"L15*L18","v":{"$error":"#DIV/0!"}},{"$f":"SUM(J19:L19)","v":{"$error":"#DIV/0!"}},null,null,{"$f":"P15*P16*P17","v":0},{"$f":"Q15*Q16*Q17","v":0},0,0,0,0,{"$f":"SUM(P19:U19)","v":0},null,{"$f":"X15*X18","v":{"$error":"#DIV/0!"}},{"$f":"Y15*Y18","v":{"$error":"#DIV/0!"}},{"$error":"#DIV/0!"},{"$f":"SUM(X19:Z19)","v":{"$error":"#DIV/0!"}},null,null,{"$f":"AD15*AD16*AD17","v":0},{"$f":"AE15*AE16*AE17","v":0},0,0,0,0,{"$f":"SUM(AD19:AI19)","v":0},null,{"$f":"AL15*AL18","v":{"$error":"#DIV/0!"}},{"$f":"AM15*AM18","v":{"$error":"#DIV/0!"}},{"$error":"#DIV/0!"},{"$f":"SUM(AL19:AN19)","v":{"$error":"#DIV/0!"}}]
[]
[null,"Piano di monitoraggio ambientale (VIA) - EDILIZIA",null,null,null,null,null,null,null,"Progettazione 1","Progettazione 2","Progettazione 4",null,null,null,"Piano di monitoraggio ambientale (VIA) - IMPIANTI",null,null,null,null,null,null,null,null,"Progettazione 3",null,null,null,null,"Piano di monitoraggio ambientale (VIA) - RURALITA'",null,null,null,null,null,null,null,null,"Progettazione 5"]
[]
["Vp",{"$f":"SUM(J23:L23)","v":0},null,null,null,null,null,null,null,{"$f":"Prestazioni!AG17","v":0},{"$f":"Prestazioni!AH17","v":0},{"$f":"Prestazioni!AJ17","v":0},null,null,"Vp",{"$f":"SUM(X23:Z23)","v":0},null,null,null,null,null,null,null,null,{"$f":"Prestazioni!AI17","v":0},null,null,null,"Vp",{"$f":"SUM(AL23:AN23)","v":0},null,null,null,null,null,null,null,null,{"$f":"Prestazioni!AK17","v":0}]
[null,{"$f":"MIN(B23,250000)","v":0},{"$f":"MIN(B23-B24,250000)","v":0},{"$f":"MIN(B23-B24-C24,500000)","v":0},{"$f":"MIN(B23-B24-C24-D24,1500000)","v":0},{"$f":"MIN(B23-B24-C24-D24-E24,2500000)","v":0},{"$f":"B23-B24-C24-D24-E24-F24","v":0},null,null,{"$f":"H28/B23*J23","v":{"$error":"#DIV/0!"}},{"$f":"H28/B23*K23","v":{"$error":"#DIV/0!"}},{"$f":"H28/B23*L23","v":{"$error":"#DIV/0!"}},null,null,null,{"$f":"MIN(P23,250000)","v":0},{"$f":"MIN(P23-P24,250000)","v":0},{"$f":"MIN(P23-P24-Q24,500000)","v":0},{"$f":"MIN(P23-P24-Q24-R24,1500000)","v":0},{"$f":"MIN(P23-P24-Q24-R24-S24,2500000)","v":0},{"$f":"P23-P24-Q24-R24-S24-T24","v":0},null,null,{"$f":"V28/P23*X23","v":{"$error":"#DIV/0!"}},{"$f":"V28/P23*Y23","v":{"$error":"#DIV/0!"}},{"$f":"V28/P23*Z23","v":{"$error":"#DIV/0!"}},null,null,null,{"$f":"MIN(AD23,250000)","v":0},{"$f":"MIN(AD23-AD24,250000)","v":0},{"$f":"MIN(AD23-AD24-AE24,500000)","v":0},{"$f":"MIN(AD23-AD24-AE24-AF24,1500000)","v":0},{"$f":"MIN(AD23-AD24-AE24-AF24-AG24,2500000)","v":0},{"$f":"AD23-AD24-AE24-AF24-AG24-AH24","v":0},null,null,{"$f":"AJ28/AD23*AL23","v":{"$error":"#DIV/0!"}},{"$f":"AJ28/AD23*AM23","v":{"$error":"#DIV/0!"}},{"$f":"AJ28/AD23*AN23","v":{"$error":"#DIV/0!"}}]
["P",{"$f":"IF(B24=0,0,MIN(10/(POWER(Prestazioni!$AN$2,0.4))+0.03,10/(POWER(25000,0.4))+0.03))","v":0},{"$f":"IF(C24=0,0,B25)","v":0},{"$f":"IF(D24=0,0,C25)","v":0},{"$f":"IF(E24=0,0,D25)","v":0},{"$f":"IF(F24=0,0,E25)","v":0},{"$f":"IF(G24=0,0,E25)","v":0},null,null,null,null,null,null,null,"P",{"$f":"IF(P24=0,0,MIN(10/(POWER(Prestazioni!$AO$2,0.4))+0.03,10/(POWER(25000,0.4))+0.03))","v":0},{"$f":"IF(Q24=0,0,P25)","v":0},{"$f":"IF(R24=0,0,Q25)","v":0},{"$f":"IF(S24=0,0,R25)","v":0},{"$f":"IF(T24=0,0,S25)","v":0},{"$f":"IF(U24=0,0,S25)","v":0},null,null,null,null,null,null,null,"P",{"$f":"IF(AD24=0,0,MIN(10/(POWER(Prestazioni!$AP$2,0.4))+0.03,10/(POWER(25000,0.4))+0.03))","v":0},{"$f":"IF(AE24=0,0,AD25)","v":0},{"$f":"IF(AF24=0,0,AE25)","v":0},{"$f":"IF(AG24=0,0,AF25)","v":0},{"$f":"IF(AH24=0,0,AG25)","v":0},{"$f":"IF(AI24=0,0,AG25)","v":0}]
["Q",0.18,0.18,0.18,0.18,0.18,8.0000000000000002E-3,null,null,null,null,null,null,null,"Q",0.18,0.18,0.18,0.18,0.18,8.0000000000000002E-3,null,null,null,null,null,null,null,"Q",0.02,0.02,0.02,0.02,0.02]
["G",null,null,null,null,null,null,null,null,{"$f":"IF(J23>0,VLOOKUP(J21,Progettazioni!$A$4:$D$9,4,FALSE),0)","v":0},{"$f":"IF(K23>0,VLOOKUP(K21,Progettazioni!$A$4:$D$9,4,FALSE),0)","v":0},{"$f":"IF(L23>0,VLOOKUP(L21,Progettazioni!$A$4:$D$9,4,FALSE),0)","v":0},null,null,"G",null,null,null,null,null,null,null,null,{"$f":"IF(X23>0,VLOOKUP(X21,Progettazioni!$A$4:$D$9,4,FALSE),0)","v":0},{"$f":"IF(Y23>0,VLOOKUP(Y21,Progettazioni!$A$4:$D$9,4,FALSE),0)","v":0},{"$f":"IF(Z23>0,VLOOKUP(Z21,Progettazioni!$A$4:$D$9,4,FALSE),0)","v":0},null,null,"G",null,null,null,null,null,null,null,null,{"$f":"IF(AL23>0,VLOOKUP(AL21,Progettazioni!$A$4:$D$9,4,FALSE),0)","v":0},{"$f":"IF(AM23>0,VLOOKUP(AM21,Progettazioni!$A$4:$D$9,4,FALSE),0)","v":0},{"$f":"IF(AN23>0,VLOOKUP(AN21,Progettazioni!$A$4:$D$9,4,FALSE),0)","v":0}]
[null,{"$f":"B24*B25*B26","v":0},{"$f":"C24*C25*C26","v":0},0,0,0,0,{"$f":"SUM(B28:G28)","v":0},null,{"$f":"J24*J27","v":{"$error":"#DIV/0!"}},{"$f":"K24*K27","v":{"$error":"#DIV/0!"}},{"$f":"L24*L27","v":{"$error":"#DIV/0!"}},{"$f":"SUM(J28:L28)","v":{"$error":"#DIV/0!"}},null,null,{"$f":"P24*P25*P26","v":0},{"$f":"Q24*Q25*Q26","v":0},0,0,0,0,{"$f":"SUM(P28:U28)","v":0},null,{"$f":"X24*X27","v":{"$error":"#DIV/0!"}},{"$f":"Y24*Y27","v":{"$error":"#DIV/0!"}},{"$error":"#DIV/0!"},{"$f":"SUM(X28:Z28)","v":{"$error":"#DIV/0!"}},null,null,{"$f":"AD24*AD25*AD26","v":0},{"$f":"AE24*AE25*AE26","v":0},0,0,0,0,{"$f":"SUM(AD28:AI28)","v":0},null,{"$f":"AL24*AL27","v":{"$error":"#DIV/0!"}},{"$f":"AM24*AM27","v":{"$error":"#DIV/0!"}},{"$error":"#DIV/0!"},{"$f":"SUM(AL28:AN28)","v":{"$error":"#DIV/0!"}}]

{"sheet":"CALCOLO CS","index":7,"n_rows":96,"n_cols":12,"rows_kept":96,"cut":false,"hidden":false,"merged":[[94,8,95,8],[94,9,95,9],[93,0,93,1],[94,2,95,5],[94,6,95,6],[94,7,95,7],[92,0,92,4],[85,0,85,4],[86,0,86,4],[87,0,87,4],[88,0,88,4],[90,0,90,4],[89,0,89,4],[17,2,17,6],[19,6,24,6],[29,2,29,6],[31,6,36,6],[91,0,91,4],[43,1,45,1],[43,2,45,2],[43,3,45,3],[19,1,21,1],[19,2,21,2],[19,3,21,3],[31,1,33,1],[31,2,33,2],[31,3,33,3],[83,0,83,6],[85,6,91,6],[65,2,65,6],[55,1,57,1],[55,2,57,2],[55,3,57,3],[67,1,69,1],[67,2,69,2],[67,3,69,3],[0,0,0,6],[4,1,4,6],[5,2,5,5],[7,6,12,6],[3,0,3,6],[7,1,9,1],[7,2,9,2],[7,3,9,3],[84,0,84,4],[1,1,1,6],[41,2,41,6],[43,6,48,6],[55,6,60,6],[53,2,53,6],[67,6,72,6],[79,0,79,4],[80,0,80,4],[81,0,81,4],[64,1,64,6],[52,1,52,6],[40,1,40,6],[28,1,28,6],[16,1,16,6],[76,0,77,6]]}
["CALCOLO SPESE GENERALI (spese di progettazione e altre spese generali)"]
["RICHIEDENTE"]
[]
["SPESE DI PROGETTAZIONE - COSTI SEMPLIFICATI",null,null,null,null,null,null,"importo max richiedibile","importo max delle spese generali"]
["Progettazione 1"," Edifici rurali di tipo complesso"]
["Vp1",{"$f":"Progettazioni!F4","v":0}]
[null,"Relazione geologica","Studio Impatto Ambientale (VIA)","Piano di monitoraggio ambientale (VIA)","Altre prestazioni","costo semplificato P1","costo semplificato P1 nel rispetto dei limiti previsti dalle D.G.","Totale spesa progettazioni P1-P2-P4-P5 (PT)",{"$f":"+B6+B18+B42+B54","v":0}]
["P",null,null,null,{"$f":"IFERROR(MIN(10/(POWER(Prestazioni!$AN$2,0.4))+0.03,10/(POWER(25000,0.4))+0.03),0)","v":0},null,null,null,{"$f":"+IF(I7<=$L$8,I7*$J$8,IF(I7>$L$8,$L$8*$J$8,0))","v":0},0.1,0,500000]
["Q",null,null,null,{"$f":"Prestazioni!Z31","v":1.27},null,null,null,{"$f":"+IF(AND(I7>$K$9,I7<=$L$9),(I7-$K$9)*$J$9,IF(I7>$L$9,($L$9-$K$9)*$J$9,0))","v":0},0.05,500000,1000000]
["G",null,null,null,{"$f":"VLOOKUP(A5,Progettazioni!$A$4:$D$9,4,FALSE)","v":0.95},null,null,null,{"$f":"+IF(I7>$K$10,(I7-$K$10)*$J$10,0)","v":0},2.5000000000000001E-2,1000000]
["CP",{"$f":"IFERROR(Parametri!J10,0)","v":0},{"$f":"IFERROR(Parametri!J19,0)","v":0},{"$f":"IFERROR(Parametri!J28,0)","v":0},{"$f":"B6*E8*E9*E10","v":0},{"$f":"SUM(B11:E11)","v":0},null,"totale spese generali (SP) 10%",{"$f":"SUM(I8:I10)","v":0}]
[null,null,null,null,null,null,null,"totale CS (CST)",{"$f":"+F14+F26+F50+F62","v":0}]
[{"$f":"\"spese accessorie: \"&FIXED(C13*100,2)&\"%\"","v":"spese accessorie: 10,00%"},{"$f":"F11*C13","v":0},{"$f":"SA!$I$4*B6+SA!$I$5","v":0.1},null,null,null,null,null,null,"P/PT","SP/CST","riduzione"]
["TOTALE P1",null,null,null,null,{"$f":"F11+B13","v":0},{"$f":"+ROUND(IF($H$95<=$I$93,H14,H14-H14*$J$95),3)","v":0},{"$f":"+ROUND(IF(I14>0,F14-I14,F14),3)","v":0},{"$f":"+F14*$L$14","v":0},{"$f":"+IF(B6>0,B6/$I$7)","v":false},{"$f":"+IF($I$12>$I$11,$I$11/$I$12,0)","v":0},{"$f":"+IF($I$12>$I$11,(1-$I$11/$I$12),0)","v":0}]
["incidenza parziale",{"$f":"IFERROR(F14/B6,0)","v":0}]
[]
["Progettazione 2"," Manutenzione straordinaria"]
["Vp2",{"$f":"Progettazioni!F5","v":0}]
[null,"Relazione geologica","Studio Impatto Ambientale (VIA)","Piano di monitoraggio ambientale (VIA)","Altre prestazioni","costo semplificato P2","costo semplificato P2 nel rispetto dei limiti previsti dalle D.G."]
["P",null,null,null,{"$f":"IFERROR(MIN(10/(POWER(Prestazioni!$AN$2,0.4))+0.03,10/(POWER(25000,0.4))+0.03),0)","v":0}]
["Q",null,null,null,{"$f":"Prestazioni!AA31","v":0.62000000000000011}]
["G",null,null,null,{"$f":"VLOOKUP(A17,Progettazioni!$A$4:$D$9,4,FALSE)","v":0.95}]
["CP",{"$f":"IFERROR(Parametri!K10,0)","v":0},{"$f":"IFERROR(Parametri!K19,0)","v":0},{"$f":"IFERROR(Parametri!K28,0)","v":0},{"$f":"B18*E20*E21*E22","v":0},{"$f":"SUM(B23:E23)","v":0}]
[]
[{"$f":"\"spese accessorie: \"&FIXED(C25*100,2)&\"%\"","v":"spese accessorie: 10,00%"},{"$f":"F23*C25","v":0},{"$f":"SA!$I$4*B18+SA!$I$5","v":0.1}]
["TOTALE P2",null,null,null,null,{"$f":"F23+B25","v":0},{"$f":"+ROUND(IF($H$95<=$I$93,H26,H26-H26*$J$95),3)","v":0},{"$f":"+ROUND(IF(I26>0,F26-I26,F26),3)","v":0},{"$f":"+F26*$L$14","v":0},{"$f":"+IF(B18>0,B18/$I$7)","v":false}]
["incidenza parziale",{"$f":"IFERROR(F26/B18,0)","v":0}]
[]
["Progettazione 3"," Impianti tecnologici"]
["Vp3",{"$f":"Progettazioni!F6","v":0}]
[null,"Relazione geologica","Studio Impatto Ambientale (VIA)","Piano di monitoraggio ambientale (VIA)","Altre prestazioni","costo semplificato P3","costo semplificato P3 nel rispetto dei limiti previsti dalle D.G."]
["P",null,null,null,{"$f":"IFERROR(MIN(10/(POWER(Prestazioni!$AO$2,0.4))+0.03,10/(POWER(25000,0.4))+0.03),0)","v":0}]
["Q",null,null,null,{"$f":"Prestazioni!AB31","v":0.67500000000000004}]
["G",null,null,null,{"$f":"VLOOKUP(A29,Progettazioni!$A$4:$D$9,4,FALSE)","v":0.7}]
["CP",{"$f":"IFERROR(Parametri!Y10,0)","v":0},{"$f":"IFERROR(Parametri!Y19,0)","v":0},{"$f":"IFERROR(Parametri!Y28,0)","v":0},{"$f":"B30*E32*E33*E34","v":0},{"$f":"SUM(B35:E35)","v":0}]
[]
[{"$f":"\"spese accessorie: \"&FIXED(C37*100,2)&\"%\"","v":"spese accessorie: 10,00%"},{"$f":"F35*C37","v":0},{"$f":"SA!$I$4*B30+SA!$I$5","v":0.1}]
["TOTALE P3",null,null,null,null,{"$f":"F35+B37","v":0},{"$f":"+ROUND(IF($H$95<=$I$93,H38,H38-H38*$J$95),3)","v":0},{"$f":"+ROUND(IF(F38<=I38,F38,I38),3)","v":0},{"$f":"+ROUND(B30*J38,2)","v":0},0.05]
["incidenza parziale",{"$f":"IFERROR(F38/B30,0)","v":0}]
[]
["Progettazione 4"," Edifici rurali di tipo semplice"]
["Vp4",{"$f":"Progettazioni!F7","v":0}]
[null,"Relazione geologica","Studio Impatto Ambientale (VIA)","Piano di monitoraggio ambientale (VIA)","Altre prestazioni","costo semplificato P4","costo semplificato P4 nel rispetto dei limiti previsti dalle D.G."]
["P",null,null,null,{"$f":"IFERROR(MIN(10/(POWER(Prestazioni!$AN$2,0.4))+0.03,10/(POWER(25000,0.4))+0.03),0)","v":0}]
["Q",null,null,null,{"$f":"Prestazioni!AC$31","v":0.64000000000000012}]
["G",null,null,null,{"$f":"VLOOKUP(A41,Progettazioni!$A$4:$D$9,4,FALSE)","v":0.65}]
["CP",{"$f":"IFERROR(Parametri!L$10,)","v":0},{"$f":"IFERROR(Parametri!L$19,0)","v":0},{"$f":"IFERROR(Parametri!L$28,0)","v":0},{"$f":"B42*E44*E45*E46","v":0},{"$f":"SUM(B47:E47)","v":0}]
[]
[{"$f":"\"spese accessorie: \"&FIXED(C49*100,2)&\"%\"","v":"spese accessorie: 10,00%"},{"$f":"F47*C49","v":0},{"$f":"SA!$I$4*B42+SA!$I$5","v":0.1}]
["TOTALE P4",null,null,null,null,{"$f":"F47+B49","v":0},{"$f":"+ROUND(IF($H$95<=$I$93,H50,H50-H50*$J$95),3)","v":0},{"$f":"+ROUND(IF(I50>0,F50-I50,F50),3)","v":0},{"$f":"+F50*$L$14","v":0},{"$f":"+IF(B42>0,B42/$I$7)","v":false}]
["incidenza parziale",{"$f":"IFERROR(F50/B42,0)","v":0}]
[]
["Progettazione 5"," Miglioramenti fondiari"]
["Vp5",{"$f":"Progettazioni!F8","v":0}]
[null,"Relazione geologica","Studio Impatto Ambientale (VIA)","Piano di monitoraggio ambientale (VIA)","Altre prestazioni","costo semplificato P5","costo semplificato P5 nel rispetto dei limiti previsti dalle D.G."]
["P",null,null,null,{"$f":"IFERROR(MIN(10/(POWER(Prestazioni!$AP$2,0.4))+0.03,10/(POWER(25000,0.4))+0.03),0)","v":0}]
["Q",null,null,null,{"$f":"Prestazioni!AD$31","v":0.30499999999999999}]
["G",null,null,null,{"$f":"VLOOKUP(A53,Progettazioni!$A$4:$D$9,4,FALSE)","v":0.65}]
["CP",{"$f":"IFERROR(Parametri!AM10,0)","v":0},{"$f":"IFERROR(Parametri!AM19,0)","v":0},{"$f":"IFERROR(Parametri!AM28,0)","v":0},{"$f":"B54*E56*E57*E58","v":0},{"$f":"SUM(B59:E59)","v":0}]
[]
[{"$f":"\"spese accessorie: \"&FIXED(C61*100,2)&\"%\"","v":"spese accessorie: 10,00%"},{"$f":"F59*C61","v":0},{"$f":"SA!$I$4*B54+SA!$I$5","v":0.1}]
["TOTALE P5",null,null,null,null,{"$f":"F59+B61","v":0},{"$f":"+ROUND(IF($H$95<=$I$93,H62,H62-H62*$J$95),3)","v":0},{"$f":"+ROUND(IF(I62>0,F62-I62,F62),3)","v":0},{"$f":"+F62*$L$14","v":0},{"$f":"+IF(B54>0,B54/$I$7)","v":false}]
["incidenza parziale",{"$f":"IFERROR(F62/B54,0)","v":0}]
[]
["Progettazione 6"," Macchine, attrezzature e beni immateriali"]
["Vp6",{"$f":"Progettazioni!F9","v":0}]
[null,"Relazione geologica","Studio Impatto Ambientale (VIA)","Piano di monitoraggio ambientale (VIA)","Altre prestazioni","costo semplificato P6","costo semplificato P6 nel rispetto dei limiti previsti dalle D.G."]
["P",null,null,null,{"$f":"IFERROR(MIN(10/(POWER(Prestazioni!$AP$2,0.4))+0.03,10/(POWER(25000,0.4))+0.03),0)","v":0}]
["Q",null,null,null,{"$f":"Prestazioni!AE$31","v":4.4999999999999998E-2}]
["G",null,null,null,{"$f":"VLOOKUP(A65,Progettazioni!$A$4:$D$9,4,FALSE)","v":0.65}]
["CP","/","/","/",{"$f":"B66*E68*E69*E70","v":0},{"$f":"SUM(B71:E71)","v":0}]
[]
[{"$f":"\"spese accessorie: \"&FIXED(C73*100,2)&\"%\"","v":"spese accessorie: 10,00%"},{"$f":"F71*C73","v":0},{"$f":"SA!$I$4*B66+SA!$I$5","v":0.1}]
["TOTALE P6",null,null,null,null,{"$f":"F71+B73","v":0},{"$f":"+ROUND(IF($H$95<=$I$93,H74,H74-H74*$J$95),3)","v":0},{"$f":"+ROUND(IF(F74<=I74,F74,I74),3)","v":0},{"$f":"+ROUND(B66*J74,2)","v":0},0.05]
["incidenza parziale",{"$f":"IFERROR(F74/B66,0)","v":0}]
[]
["TOTALE SPESE DI PROGETTAZIONE",null,null,null,null,null,null,"totale spese 10% max",{"$f":"+I11","v":0}]
[null,null,null,null,null,null,null,"totale spese 5% max",{"$f":"+I74+I38","v":0}]
[null,null,null,null,null,"costo semplificato ","costo semplificato nel rispetto dei limiti previsti dalle D.G."]
["Costi procedurali e amministrativi",null,null,null,null,{"$f":"IF(Progettazioni!F11=0,0,27*44)","v":0},{"$f":"+ROUND(IF($H$95<=$I$93,H80,H80-H80*$J$95),3)","v":0},{"$f":"+F80","v":0}]
["CP totale",null,null,null,null,{"$f":"F14+F26+F38+F50+F62+F74+F80","v":0},{"$f":"+SUM(G80,G74,G62,G50,G38,G26,G14)","v":0},{"$f":"+SUM(H80,H74,H62,H50,H38,H26,H14)","v":0},{"$f":"+G81-F81","v":0}]
["inc. tot.",null,null,null,null,{"$f":"IFERROR(F81/Progettazioni!F11,0)","v":0},{"$f":"IFERROR(G81/Progettazioni!F11,0)","v":0}]
[]
["ALTRE SPESE GENERALI (da rendicontare a saldo)"]
[null,null,null,null,null,"costo effettivo","costo max ammissibile"]
["SPESE PER AZIONI INFORMATIVE E PUBBLICITARIE",null,null,null,null,1000]
["SPESE PER GARANZIE FIDEIUSSORIE",null,null,null,null,4000]
["PARCELLE PER CONSULENZE LEGALI",null,null,null,null,15000]
[]
[]
[]
[]
["TOTALE",null,null,null,null,{"$f":"SUM(F86:F92)","v":20000},{"$f":"+IFERROR(ROUND(H93-H93*$J$95,2),0)","v":0},{"$f":"+F93","v":20000},{"$f":"+I77+I78","v":0}]
["SPESE GENERALI calcolate con i parametri delle \nDisposizioni Generali (D.G.)"]
["GRUPPO 1 (max. 10%)",{"$f":"+I77","v":0},"TOTALE SPESE GENERALI AMMISSIBILI A CONTRIBUTO",null,null,null,{"$f":"+G81+G93","v":0},{"$f":"+H81+H93","v":20000},{"$f":"+IF(H95<I93,0,H95-I93)","v":20000},{"$f":"+I95/H95","v":1}]
["GRUPPO 2 (max. 5%)",{"$f":"+I78","v":0}]

{"sheet":"Elenchi","index":8,"n_rows":8,"n_cols":1,"rows_kept":8,"cut":false,"hidden":true,"merged":[]}
["altre spese"]
[]
["PARCELLE NOTARILI"]
["PARCELLE PER CONSULENZE LEGALI"]
["SPESE PER AZIONI INFORMATIVE E PUBBLICITARIE"]
["SPESE PER CONSULENZA TECNICA E FINANZIARIA"]
["SPESE PER GARANZIE FIDEIUSSORIE"]
["SPESE PER TENUTA CONTO CORRENTE DEDICATO"]

{"sheet":"SA","index":9,"n_rows":7,"n_cols":9,"rows_kept":7,"cut":false,"hidden":true,"merged":[]}
[]
["CALCOLO DELLE SPESE ACCESSORIE"]
[null,"y","x"]
["valore percentuale s.a. a € 0:",0.1,0,null,null,null,null,"m",{"$f":"(B4-B5)/(C4-C5)","v":-5.0000000000000001E-9}]
["valore percentuale s.a. a € 10.000.000:",0.05,10000000,null,null,null,null,"q",{"$f":"(C4*B5-C5*B4)/(C4-C5)","v":0.1}]
[]
["calcola valore s.a. per un investimento complessivo di:",null,5000000,null,{"$f":"I4*C7+I5","v":7.5000000000000011E-2},null,null,"y=mx+q"]